[Event "Titled Tuesday Blitz July 11 Early 2023"]
[White "Oleksiyenko, Mykhaylo"]
[Black "FromTexas54"]
[WhiteFideId "4152417"]
[WhiteElo "2666"]
[BlackElo "2515"]
[Result "1/2-1/2"]
[Round "5"]
[TimeControl "180+2"]
[Date "2023.07.11"]
[WhiteClock "0:00:07"]
[BlackClock "0:00:14"]
[Board "68"]

1. e4 {[%clk 0:03:00]}  e5 {[%clk 0:02:58]} 2. Nf3 {[%clk 0:03:01]}  Nc6 {[%clk 0:02:58]} 3. Bb5 {[%clk 0:03:01]}  a6 {[%clk 0:02:58]} 4. Bxc6 {[%clk 0:03:02]}  dxc6 {[%clk 0:02:58]} 5. O-O {[%clk 0:03:03]}  Ne7 {[%clk 0:02:56]} 6. Nxe5 {[%clk 0:02:49]}  Qd4 {[%clk 0:02:55]} 7. Nf3 {[%clk 0:02:48]}  Qxe4 {[%clk 0:02:55]} 8. Re1 {[%clk 0:02:45]}  Qg6 {[%clk 0:02:55]} 9. d3 {[%clk 0:02:43]}  Bg4 {[%clk 0:02:48]} 10. Ne5 {[%clk 0:02:21]}  Bxd1 {[%clk 0:02:44]} 11. Nxg6 {[%clk 0:02:21]}  hxg6 {[%clk 0:02:42]} 12. Rxd1 {[%clk 0:02:22]}  O-O-O {[%clk 0:02:41]} 13. Nc3 {[%clk 0:02:17]}  Nd5 {[%clk 0:02:41]} 14. Ne4 {[%clk 0:02:14]}  Nb4 {[%clk 0:02:15]} 15. Rd2 {[%clk 0:02:14]}  f6 {[%clk 0:02:11]} 16. a3 {[%clk 0:02:11]}  Nd5 {[%clk 0:02:11]} 17. Re2 {[%clk 0:02:11]}  Bd6 {[%clk 0:02:02]} 18. Nxd6+ {[%clk 0:02:10]}  cxd6 {[%clk 0:02:03]} 19. Bd2 {[%clk 0:02:05]}  Rde8 {[%clk 0:02:02]} 20. Rae1 {[%clk 0:02:01]}  Kd7 {[%clk 0:02:01]} 21. Re4 {[%clk 0:01:37]}  Nc7 {[%clk 0:01:55]} 22. f3 {[%clk 0:01:34]}  d5 {[%clk 0:01:52]} 23. Rg4 {[%clk 0:01:32]}  Rxe1+ {[%clk 0:01:51]} 24. Bxe1 {[%clk 0:01:33]}  g5 {[%clk 0:01:49]} 25. h4 {[%clk 0:01:30]}  Ne6 {[%clk 0:01:43]} 26. hxg5 {[%clk 0:01:30]}  Nxg5 {[%clk 0:01:44]} 27. Bd2 {[%clk 0:01:27]}  Ne6 {[%clk 0:01:44]} 28. c4 {[%clk 0:01:00]}  dxc4 {[%clk 0:01:41]} 29. dxc4 {[%clk 0:01:00]}  g5 {[%clk 0:01:37]} 30. Bc3 {[%clk 0:00:54]}  Rf8 {[%clk 0:01:28]} 31. Re4 {[%clk 0:00:51]}  Nc5 {[%clk 0:01:13]} 32. Re3 {[%clk 0:00:49]}  f5 {[%clk 0:01:03]} 33. Bb4 {[%clk 0:00:48]}  b6 {[%clk 0:00:57]} 34. Kf2 {[%clk 0:00:22]}  a5 {[%clk 0:00:37]} 35. Bxc5 {[%clk 0:00:22]}  bxc5 {[%clk 0:00:38]} 36. Rb3 {[%clk 0:00:22]}  Kc7 {[%clk 0:00:29]} 37. Rd3 {[%clk 0:00:22]}  Rb8 {[%clk 0:00:28]} 38. Rd2 {[%clk 0:00:18]}  Rb3 {[%clk 0:00:28]} 39. Kg3 {[%clk 0:00:16]}  a4 {[%clk 0:00:26]} 40. Re2 {[%clk 0:00:16]}  Kd6 {[%clk 0:00:23]} 41. Rd2+ {[%clk 0:00:15]}  Ke5 {[%clk 0:00:23]} 42. Kf2 {[%clk 0:00:15]}  g4 {[%clk 0:00:20]} 43. fxg4 {[%clk 0:00:14]}  fxg4 {[%clk 0:00:21]} 44. g3 {[%clk 0:00:14]}  Ke4 {[%clk 0:00:18]} 45. Re2+ {[%clk 0:00:14]}  Kd4 {[%clk 0:00:17]} 46. Rc2 {[%clk 0:00:13]}  Rf3+ {[%clk 0:00:17]} 47. Kg2 {[%clk 0:00:13]}  Rb3 {[%clk 0:00:14]} 48. Kf2 {[%clk 0:00:13]}  Kd3 {[%clk 0:00:15]} 49. Re2 {[%clk 0:00:11]}  Kxc4 {[%clk 0:00:13]} 50. Re4+ {[%clk 0:00:08]}  Kb5 {[%clk 0:00:13]} 51. Rxg4 {[%clk 0:00:07]}  Rxb2+ {[%clk 0:00:13]} 52. Ke1 {[%clk 0:00:07]}  Rg2 {[%clk 0:00:11]} 53. Kd1 {[%clk 0:00:06]}  c4 {[%clk 0:00:11]} 54. Kc1 {[%clk 0:00:06]}  c3 {[%clk 0:00:11]} 55. Kb1 {[%clk 0:00:06]}  Rb2+ {[%clk 0:00:08]} 56. Kc1 {[%clk 0:00:06]}  Ra2 {[%clk 0:00:08]} 57. Re4 {[%clk 0:00:02]}  Rxa3 {[%clk 0:00:08]} 58. Kc2 {[%clk 0:00:03]}  Ra2+ {[%clk 0:00:08]} 59. Kxc3 {[%clk 0:00:03]}  Ra3+ {[%clk 0:00:08]} 60. Kb2 {[%clk 0:00:04]}  Rb3+ {[%clk 0:00:08]} 61. Ka2 {[%clk 0:00:03]}  Rxg3 {[%clk 0:00:09]} 62. Re5+ {[%clk 0:00:03]}  c5 {[%clk 0:00:09]} 63. Rh5 {[%clk 0:00:03]}  Rg2+ {[%clk 0:00:10]} 64. Ka3 {[%clk 0:00:03]}  Rg3+ {[%clk 0:00:11]} 65. Ka2 {[%clk 0:00:04]}  Kb4 {[%clk 0:00:11]} 66. Rh8 {[%clk 0:00:03]}  Rg2+ {[%clk 0:00:12]} 67. Kb1 {[%clk 0:00:04]}  c4 {[%clk 0:00:11]} 68. Rh3 {[%clk 0:00:03]}  Rg1+ {[%clk 0:00:10]} 69. Kb2 {[%clk 0:00:03]}  Rg2+ {[%clk 0:00:11]} 70. Kb1 {[%clk 0:00:03]}  c3 {[%clk 0:00:11]} 71. Rh8 {[%clk 0:00:02]}  Rb2+ {[%clk 0:00:09]} 72. Ka1 {[%clk 0:00:02]}  Rf2 {[%clk 0:00:09]} 73. Kb1 {[%clk 0:00:02]}  Kb3 {[%clk 0:00:08]} 74. Rb8+ {[%clk 0:00:02]}  Ka3 {[%clk 0:00:09]} 75. Rc8 {[%clk 0:00:03]}  Kb3 {[%clk 0:00:05]} 76. Rb8+ {[%clk 0:00:03]}  Kc4 {[%clk 0:00:05]} 77. Rc8+ {[%clk 0:00:04]}  Kb4 {[%clk 0:00:04]} 78. Rb8+ {[%clk 0:00:05]}  Ka3 {[%clk 0:00:04]} 79. Rc8 {[%clk 0:00:05]}  Rb2+ {[%clk 0:00:04]} 80. Ka1 {[%clk 0:00:05]}  Rb3 {[%clk 0:00:05]} 81. Rc4 {[%clk 0:00:05]}  c2 {[%clk 0:00:03]} 82. Rxc2 {[%clk 0:00:05]}  Rh3 {[%clk 0:00:04]} 83. Kb1 {[%clk 0:00:03]}  Kb3 {[%clk 0:00:04]} 84. Rc1 {[%clk 0:00:03]}  a3 {[%clk 0:00:04]} 85. Ka1 {[%clk 0:00:03]}  Rh2 {[%clk 0:00:04]} 86. Rb1+ {[%clk 0:00:03]}  Rb2 {[%clk 0:00:04]} 87. Rh1 {[%clk 0:00:03]}  Ra2+ {[%clk 0:00:04]} 88. Kb1 {[%clk 0:00:03]}  Rb2+ {[%clk 0:00:05]} 89. Ka1 {[%clk 0:00:04]}  Rc2 {[%clk 0:00:06]} 90. Rh3+ {[%clk 0:00:01]}  Ka4 {[%clk 0:00:07]} 91. Rh4+ {[%clk 0:00:02]}  Kb3 {[%clk 0:00:08]} 92. Rh3+ {[%clk 0:00:02]}  Rc3 {[%clk 0:00:08]} 93. Rxc3+ {[%clk 0:00:02]}  Kxc3 {[%clk 0:00:09]} 94. Ka2 {[%clk 0:00:03]}  Kb4 {[%clk 0:00:10]} 95. Ka1 {[%clk 0:00:04]}  Ka4 {[%clk 0:00:10]} 96. Ka2 {[%clk 0:00:05]}  Kb4 {[%clk 0:00:11]} 97. Ka1 {[%clk 0:00:06]}  Kb3 {[%clk 0:00:12]} 98. Kb1 {[%clk 0:00:06]}  a2+ {[%clk 0:00:13]} 99. Ka1 {[%clk 0:00:07]}  Ka3 {[%clk 0:00:14]} 1/2-1/2


[Site "https://www.chess.com"]

[Event "Titled Tuesday Blitz July 11 Early 2023"]
[White "Santos Flores, Alberto"]
[Black "Bobkov, Vadim"]
[WhiteFideId "3601234"]
[BlackFideId "34110876"]
[WhiteElo "2503"]
[BlackElo "2650"]
[Result "1-0"]
[Round "5"]
[TimeControl "180+2"]
[Date "2023.07.11"]
[WhiteClock "0:00:19"]
[BlackClock "0:00:00"]
[Board "70"]

1. e4 {[%clk 0:01:20]}  c5 {[%clk 0:02:59]} 2. Nf3 {[%clk 0:01:20]}  g6 {[%clk 0:02:59]} 3. d4 {[%clk 0:01:21]}  cxd4 {[%clk 0:03:00]} 4. Nxd4 {[%clk 0:01:21]}  Nc6 {[%clk 0:03:00]} 5. Nc3 {[%clk 0:01:21]}  Bg7 {[%clk 0:02:59]} 6. Be3 {[%clk 0:01:22]}  Nf6 {[%clk 0:02:59]} 7. Bc4 {[%clk 0:01:22]}  O-O {[%clk 0:02:59]} 8. Bb3 {[%clk 0:01:22]}  Re8 {[%clk 0:02:57]} 9. f3 {[%clk 0:01:18]}  e6 {[%clk 0:02:13]} 10. f4 {[%clk 0:01:19]}  d6 {[%clk 0:02:01]} 11. Ndb5 {[%clk 0:01:18]}  d5 {[%clk 0:01:03]} 12. e5 {[%clk 0:01:18]}  Nd7 {[%clk 0:01:02]} 13. Nd6 {[%clk 0:01:18]}  Rf8 {[%clk 0:00:57]} 14. Ne2 {[%clk 0:01:12]}  f6 {[%clk 0:00:53]} 15. exf6 {[%clk 0:01:06]}  Nxf6 {[%clk 0:00:41]} 16. Nxc8 {[%clk 0:01:06]}  Qxc8 {[%clk 0:00:42]} 17. O-O {[%clk 0:00:46]}  Ng4 {[%clk 0:00:34]} 18. Bc5 {[%clk 0:00:46]}  Bxb2 {[%clk 0:00:17]} 19. Rb1 {[%clk 0:00:45]}  Bf6 {[%clk 0:00:11]} 20. h3 {[%clk 0:00:46]}  Nh6 {[%clk 0:00:08]} 21. Bxf8 {[%clk 0:00:43]}  Qxf8 {[%clk 0:00:09]} 22. g4 {[%clk 0:00:34]}  Bg7 {[%clk 0:00:06]} 23. c3 {[%clk 0:00:27]}  Qc5+ {[%clk 0:00:06]} 24. Kg2 {[%clk 0:00:23]}  Rf8 {[%clk 0:00:06]} 25. Rc1 {[%clk 0:00:19]}  Kh8 {[%clk 0:00:04]} 26. Nd4 {[%clk 0:00:19]}  Nxd4 {[%clk 0:00:03]} 27. cxd4 {[%clk 0:00:19]}  Qxd4 {[%clk 0:00:03]} 28. Qxd4 {[%clk 0:00:19]}  Bxd4 {[%clk 0:00:04]} 29. Rc7 {[%clk 0:00:20]}  Bb6 {[%clk 0:00:02]} 30. Rxb7 {[%clk 0:00:19]}  Rc8 {[%clk 0:00:00]} 31. Re1 {[%clk 0:00:19]} 1-0


[Site "https://www.chess.com"]

[Event "Titled Tuesday Blitz July 11 Early 2023"]
[White "Belov, Alexei"]
[Black "Niekras, Dawid"]
[WhiteFideId "4128206"]
[BlackFideId "1160451"]
[WhiteElo "2490"]
[BlackElo "2618"]
[Result "1-0"]
[Round "5"]
[TimeControl "180+2"]
[Date "2023.07.11"]
[WhiteClock "0:00:42"]
[BlackClock "0:00:00"]
[Board "71"]

1. e4 {[%clk 0:03:00]}  c5 {[%clk 0:02:58]} 2. Nf3 {[%clk 0:03:00]}  g6 {[%clk 0:02:58]} 3. d4 {[%clk 0:03:00]}  cxd4 {[%clk 0:02:59]} 4. Nxd4 {[%clk 0:03:01]}  Nc6 {[%clk 0:02:59]} 5. Be3 {[%clk 0:02:57]}  Nf6 {[%clk 0:02:58]} 6. Nc3 {[%clk 0:02:56]}  Bg7 {[%clk 0:02:58]} 7. Nxc6 {[%clk 0:02:56]}  bxc6 {[%clk 0:02:59]} 8. e5 {[%clk 0:02:56]}  Ng8 {[%clk 0:03:00]} 9. f4 {[%clk 0:02:55]}  f6 {[%clk 0:03:00]} 10. exf6 {[%clk 0:02:53]}  Nxf6 {[%clk 0:03:00]} 11. Be2 {[%clk 0:02:43]}  O-O {[%clk 0:03:00]} 12. O-O {[%clk 0:02:42]}  d5 {[%clk 0:02:56]} 13. Bd4 {[%clk 0:02:42]}  Qa5 {[%clk 0:02:40]} 14. Be5 {[%clk 0:02:36]}  e6 {[%clk 0:02:35]} 15. Kh1 {[%clk 0:02:34]}  c5 {[%clk 0:02:34]} 16. Nb5 {[%clk 0:02:27]}  Qb6 {[%clk 0:01:55]} 17. c4 {[%clk 0:02:09]}  Ba6 {[%clk 0:01:15]} 18. Nc7 {[%clk 0:02:02]}  Rad8 {[%clk 0:01:06]} 19. Nxa6 {[%clk 0:02:01]}  Qxa6 {[%clk 0:01:06]} 20. cxd5 {[%clk 0:02:01]}  Qb6 {[%clk 0:00:58]} 21. d6 {[%clk 0:01:59]}  Nd5 {[%clk 0:00:46]} 22. Qd2 {[%clk 0:01:53]}  Rxd6 {[%clk 0:00:36]} 23. Bxd6 {[%clk 0:01:49]}  Qxd6 {[%clk 0:00:37]} 24. Bc4 {[%clk 0:01:43]}  Bd4 {[%clk 0:00:36]} 25. Rae1 {[%clk 0:01:40]}  Kg7 {[%clk 0:00:31]} 26. g3 {[%clk 0:01:37]}  Rf6 {[%clk 0:00:23]} 27. Re4 {[%clk 0:01:32]}  Nb6 {[%clk 0:00:21]} 28. b3 {[%clk 0:01:27]}  Nxc4 {[%clk 0:00:19]} 29. bxc4 {[%clk 0:01:27]}  Qc6 {[%clk 0:00:19]} 30. Qg2 {[%clk 0:01:27]}  Qa6 {[%clk 0:00:19]} 31. Qe2 {[%clk 0:01:24]}  Qc6 {[%clk 0:00:19]} 32. Re1 {[%clk 0:01:21]}  Kf7 {[%clk 0:00:19]} 33. Kg2 {[%clk 0:01:13]}  g5 {[%clk 0:00:16]} 34. Qf3 {[%clk 0:01:12]}  Qa4 {[%clk 0:00:09]} 35. Qh5+ {[%clk 0:01:08]}  Kg7 {[%clk 0:00:08]} 36. Rxe6 {[%clk 0:00:50]}  Rxe6 {[%clk 0:00:03]} 37. Rxe6 {[%clk 0:00:49]}  Qxc4 {[%clk 0:00:04]} 38. Qxg5+ {[%clk 0:00:45]}  Kf8 {[%clk 0:00:03]} 39. Qd8+ {[%clk 0:00:43]}  Kg7 {[%clk 0:00:00]} 40. Qd7+ {[%clk 0:00:42]} 1-0


[Site "https://www.chess.com"]

[Event "Titled Tuesday Blitz July 11 Early 2023"]
[White "Avazkhonov, Alikhon"]
[Black "Souleidis, Georgios"]
[WhiteFideId "14208504"]
[BlackFideId "4206827"]
[WhiteElo "2447"]
[BlackElo "2609"]
[Result "0-1"]
[Round "5"]
[TimeControl "180+2"]
[Date "2023.07.11"]
[WhiteClock "0:00:00"]
[BlackClock "0:00:09"]
[Board "73"]

1. d4 {[%clk 0:02:58]}  Nf6 {[%clk 0:03:00]} 2. c4 {[%clk 0:02:55]}  g6 {[%clk 0:02:59]} 3. Nc3 {[%clk 0:02:56]}  Bg7 {[%clk 0:02:59]} 4. e4 {[%clk 0:02:56]}  d6 {[%clk 0:02:59]} 5. f3 {[%clk 0:02:56]}  O-O {[%clk 0:02:59]} 6. Be3 {[%clk 0:02:56]}  a6 {[%clk 0:03:00]} 7. Qd2 {[%clk 0:02:56]}  c6 {[%clk 0:02:59]} 8. a4 {[%clk 0:02:53]}  a5 {[%clk 0:02:59]} 9. Bd3 {[%clk 0:02:53]}  Na6 {[%clk 0:02:59]} 10. Rd1 {[%clk 0:02:51]}  Nb4 {[%clk 0:02:59]} 11. Bb1 {[%clk 0:02:48]}  Qc7 {[%clk 0:02:58]} 12. Nge2 {[%clk 0:02:48]}  e5 {[%clk 0:02:58]} 13. O-O {[%clk 0:02:48]}  Be6 {[%clk 0:02:46]} 14. d5 {[%clk 0:02:46]}  cxd5 {[%clk 0:02:45]} 15. cxd5 {[%clk 0:02:46]}  Bd7 {[%clk 0:02:45]} 16. Rc1 {[%clk 0:02:42]}  Qb8 {[%clk 0:02:42]} 17. Nb5 {[%clk 0:02:40]}  Bxb5 {[%clk 0:02:42]} 18. axb5 {[%clk 0:02:40]}  Nd7 {[%clk 0:02:32]} 19. Nc3 {[%clk 0:02:37]}  Bf6 {[%clk 0:02:27]} 20. Na4 {[%clk 0:02:31]}  Rc8 {[%clk 0:02:17]} 21. Bb6 {[%clk 0:02:13]}  Rxc1 {[%clk 0:02:09]} 22. Rxc1 {[%clk 0:02:06]}  Bd8 {[%clk 0:02:09]} 23. Qf2 {[%clk 0:01:36]}  Kg7 {[%clk 0:01:43]} 24. f4 {[%clk 0:01:07]}  exf4 {[%clk 0:01:30]} 25. Bd4+ {[%clk 0:01:05]}  Bf6 {[%clk 0:01:29]} 26. Bxf6+ {[%clk 0:00:59]}  Kxf6 {[%clk 0:01:06]} 27. Qxf4+ {[%clk 0:00:20]}  Kg7 {[%clk 0:01:06]} 28. b6 {[%clk 0:00:18]}  Na6 {[%clk 0:00:54]} 29. Bd3 {[%clk 0:00:12]}  Nac5 {[%clk 0:00:51]} 30. Nxc5 {[%clk 0:00:10]}  dxc5 {[%clk 0:00:52]} 31. Qe3 {[%clk 0:00:06]}  Qd6 {[%clk 0:00:49]} 32. Bb5 {[%clk 0:00:06]}  Nxb6 {[%clk 0:00:48]} 33. Qxc5 {[%clk 0:00:07]}  Qxc5+ {[%clk 0:00:25]} 34. Rxc5 {[%clk 0:00:08]}  Kf6 {[%clk 0:00:25]} 35. d6 {[%clk 0:00:07]}  Rd8 {[%clk 0:00:21]} 36. e5+ {[%clk 0:00:06]}  Ke6 {[%clk 0:00:21]} 37. Rc7 {[%clk 0:00:05]}  Kxe5 {[%clk 0:00:20]} 38. Rxb7 {[%clk 0:00:04]}  Rxd6 {[%clk 0:00:20]} 39. Rxf7 {[%clk 0:00:05]}  h6 {[%clk 0:00:20]} 40. Rb7 {[%clk 0:00:04]}  Nd5 {[%clk 0:00:20]} 41. Bc4 {[%clk 0:00:03]}  Ne3 {[%clk 0:00:18]} 42. Rb5+ {[%clk 0:00:03]}  Kd4 {[%clk 0:00:17]} 43. Be2 {[%clk 0:00:04]}  Rc6 {[%clk 0:00:11]} 44. Rxa5 {[%clk 0:00:03]}  Rc2 {[%clk 0:00:09]} 45. Kf2 {[%clk 0:00:04]}  Nd1+ {[%clk 0:00:09]} 46. Ke1 {[%clk 0:00:04]}  Nxb2 {[%clk 0:00:10]} 47. Rb5 {[%clk 0:00:02]}  Nd3+ {[%clk 0:00:07]} 48. Kd1 {[%clk 0:00:01]}  Ra2 {[%clk 0:00:05]} 49. Rb3 {[%clk 0:00:01]}  Nf2+ {[%clk 0:00:05]} 50. Ke1 {[%clk 0:00:01]}  Ne4 {[%clk 0:00:06]} 51. Kd1 {[%clk 0:00:01]}  Ke5 {[%clk 0:00:06]} 52. Re3 {[%clk 0:00:01]}  Kd4 {[%clk 0:00:06]} 53. Rf3 {[%clk 0:00:02]}  Nc3+ {[%clk 0:00:06]} 54. Rxc3 {[%clk 0:00:02]}  Kxc3 {[%clk 0:00:07]} 55. Bf3 {[%clk 0:00:02]}  h5 {[%clk 0:00:06]} 56. Ke1 {[%clk 0:00:03]}  Kd4 {[%clk 0:00:07]} 57. h3 {[%clk 0:00:02]}  h4 {[%clk 0:00:07]} 58. Kf1 {[%clk 0:00:01]}  Ke3 {[%clk 0:00:07]} 59. Kg1 {[%clk 0:00:02]}  g5 {[%clk 0:00:08]} 60. Kh2 {[%clk 0:00:03]}  Kf2 {[%clk 0:00:07]} 61. Bd5 {[%clk 0:00:02]}  Ra3 {[%clk 0:00:07]} 62. Bf3 {[%clk 0:00:03]}  Rxf3 {[%clk 0:00:06]} 63. gxf3 {[%clk 0:00:04]}  Kxf3 {[%clk 0:00:07]} 64. Kh1 {[%clk 0:00:02]}  Kg3 {[%clk 0:00:08]} 65. Kg1 {[%clk 0:00:00]}  Kxh3 {[%clk 0:00:09]} 0-1


[Site "https://www.chess.com"]

[Event "Titled Tuesday Blitz July 11 Early 2023"]
[White "Borrmann, Laurenz"]
[Black "whiteglovethief"]
[WhiteFideId "312187930"]
[WhiteElo "2586"]
[BlackElo "2431"]
[Result "1-0"]
[Round "5"]
[TimeControl "180+2"]
[Date "2023.07.11"]
[WhiteClock "0:01:10"]
[BlackClock "0:01:50"]
[Board "75"]

1. e4 {[%clk 0:03:00]}  e6 {[%clk 0:02:57]} 2. d4 {[%clk 0:02:51]}  d5 {[%clk 0:02:58]} 3. Nc3 {[%clk 0:02:51]}  Bb4 {[%clk 0:02:57]} 4. e5 {[%clk 0:02:48]}  c5 {[%clk 0:02:55]} 5. a3 {[%clk 0:02:49]}  Bxc3+ {[%clk 0:02:54]} 6. bxc3 {[%clk 0:02:50]}  Ne7 {[%clk 0:02:54]} 7. h4 {[%clk 0:02:44]}  Nbc6 {[%clk 0:02:53]} 8. h5 {[%clk 0:02:41]}  Qa5 {[%clk 0:02:53]} 9. Bd2 {[%clk 0:02:34]}  Bd7 {[%clk 0:02:53]} 10. h6 {[%clk 0:02:21]}  gxh6 {[%clk 0:02:49]} 11. Nf3 {[%clk 0:02:18]}  O-O-O {[%clk 0:02:48]} 12. a4 {[%clk 0:02:13]}  Ng8 {[%clk 0:02:39]} 13. Bb5 {[%clk 0:01:52]}  f6 {[%clk 0:02:26]} 14. c4 {[%clk 0:01:44]}  Qc7 {[%clk 0:02:25]} 15. cxd5 {[%clk 0:01:35]}  exd5 {[%clk 0:02:25]} 16. Bf4 {[%clk 0:01:27]}  fxe5 {[%clk 0:02:24]} 17. Nxe5 {[%clk 0:01:26]}  Re8 {[%clk 0:02:20]} 18. O-O {[%clk 0:01:23]}  Nxe5 {[%clk 0:02:19]} 19. Bxe5 {[%clk 0:01:24]}  Rxe5 {[%clk 0:02:19]} 20. dxe5 {[%clk 0:01:24]}  Qxe5 {[%clk 0:02:17]} 21. Bxd7+ {[%clk 0:01:23]}  Kxd7 {[%clk 0:02:18]} 22. Re1 {[%clk 0:01:24]}  Qf5 {[%clk 0:02:15]} 23. Rb1 {[%clk 0:01:19]}  b6 {[%clk 0:02:13]} 24. Qe2 {[%clk 0:01:17]}  Qf7 {[%clk 0:02:03]} 25. a5 {[%clk 0:01:15]}  Nf6 {[%clk 0:02:00]} 26. axb6 {[%clk 0:01:15]}  axb6 {[%clk 0:02:00]} 27. Qb5+ {[%clk 0:01:11]}  Kc8 {[%clk 0:01:58]} 28. Qc6+ {[%clk 0:01:11]}  Kd8 {[%clk 0:01:50]} 29. Qxb6+ {[%clk 0:01:10]} 1-0


[Site "https://www.chess.com"]

[Event "Titled Tuesday Blitz July 11 Early 2023"]
[White "Kim, Sergey"]
[Black "Tanmay Jain"]
[WhiteFideId "13700570"]
[BlackFideId "45015481"]
[WhiteElo "2586"]
[BlackElo "2426"]
[Result "0-1"]
[Round "5"]
[TimeControl "180+2"]
[Date "2023.07.11"]
[WhiteClock "0:00:10"]
[BlackClock "0:00:09"]
[Board "76"]

1. d4 {[%clk 0:03:00]}  Nf6 {[%clk 0:02:58]} 2. c4 {[%clk 0:03:00]}  e6 {[%clk 0:02:59]} 3. Nc3 {[%clk 0:03:01]}  d5 {[%clk 0:02:59]} 4. Nf3 {[%clk 0:03:00]}  Be7 {[%clk 0:02:59]} 5. Bf4 {[%clk 0:03:00]}  O-O {[%clk 0:02:59]} 6. e3 {[%clk 0:03:00]}  b6 {[%clk 0:02:57]} 7. cxd5 {[%clk 0:02:54]}  exd5 {[%clk 0:02:57]} 8. Ne5 {[%clk 0:02:53]}  Bb7 {[%clk 0:02:53]} 9. Bd3 {[%clk 0:02:53]}  c5 {[%clk 0:02:52]} 10. O-O {[%clk 0:02:53]}  Nc6 {[%clk 0:02:51]} 11. Bf5 {[%clk 0:02:47]}  Bd6 {[%clk 0:02:43]} 12. Bg3 {[%clk 0:02:44]}  Qe7 {[%clk 0:02:32]} 13. Nxc6 {[%clk 0:02:30]}  Bxc6 {[%clk 0:02:33]} 14. Qf3 {[%clk 0:02:21]}  Bxg3 {[%clk 0:02:19]} 15. hxg3 {[%clk 0:02:20]}  g6 {[%clk 0:02:01]} 16. Bh3 {[%clk 0:02:12]}  cxd4 {[%clk 0:01:51]} 17. exd4 {[%clk 0:02:12]}  Ne4 {[%clk 0:01:51]} 18. Rfe1 {[%clk 0:02:06]}  Qd6 {[%clk 0:01:44]} 19. Rac1 {[%clk 0:01:59]}  Rae8 {[%clk 0:01:39]} 20. a3 {[%clk 0:01:48]}  f5 {[%clk 0:01:09]} 21. g4 {[%clk 0:01:36]}  fxg4 {[%clk 0:00:46]} 22. Nxe4 {[%clk 0:01:35]}  Rxe4 {[%clk 0:00:40]} 23. Qc3 {[%clk 0:01:29]}  Rxe1+ {[%clk 0:00:31]} 24. Rxe1 {[%clk 0:01:29]}  gxh3 {[%clk 0:00:31]} 25. Qxh3 {[%clk 0:01:29]}  Bd7 {[%clk 0:00:30]} 26. Qh4 {[%clk 0:01:25]}  Qf6 {[%clk 0:00:28]} 27. Qg3 {[%clk 0:01:23]}  Bf5 {[%clk 0:00:25]} 28. Re5 {[%clk 0:01:19]}  Rd8 {[%clk 0:00:23]} 29. Qf4 {[%clk 0:01:16]}  Kg7 {[%clk 0:00:21]} 30. Qe3 {[%clk 0:01:15]}  Rd7 {[%clk 0:00:21]} 31. f3 {[%clk 0:01:11]}  Bc2 {[%clk 0:00:16]} 32. Re6 {[%clk 0:01:06]}  Qf5 {[%clk 0:00:05]} 33. Rc6 {[%clk 0:01:03]}  Rf7 {[%clk 0:00:03]} 34. g4 {[%clk 0:00:48]}  Qxf3 {[%clk 0:00:03]} 35. Qe5+ {[%clk 0:00:32]}  Kh6 {[%clk 0:00:02]} 36. Qh2+ {[%clk 0:00:31]}  Kg5 {[%clk 0:00:01]} 37. Qd2+ {[%clk 0:00:29]}  Kh4 {[%clk 0:00:02]} 38. Qe1+ {[%clk 0:00:26]}  Kg5 {[%clk 0:00:01]} 39. Qd2+ {[%clk 0:00:25]}  Kxg4 {[%clk 0:00:01]} 40. Rxc2 {[%clk 0:00:22]}  Qg3+ {[%clk 0:00:01]} 41. Qg2 {[%clk 0:00:21]}  Qxg2+ {[%clk 0:00:02]} 42. Kxg2 {[%clk 0:00:21]}  Kf5 {[%clk 0:00:03]} 43. Kf3 {[%clk 0:00:21]}  Ke6+ {[%clk 0:00:03]} 44. Ke3 {[%clk 0:00:21]}  Kd6 {[%clk 0:00:04]} 45. Rg2 {[%clk 0:00:20]}  Rf5 {[%clk 0:00:04]} 46. Rh2 {[%clk 0:00:19]}  h5 {[%clk 0:00:04]} 47. Rc2 {[%clk 0:00:19]}  g5 {[%clk 0:00:04]} 48. Rc8 {[%clk 0:00:19]}  g4 {[%clk 0:00:04]} 49. Rg8 {[%clk 0:00:19]}  Rf3+ {[%clk 0:00:05]} 50. Ke2 {[%clk 0:00:19]}  Ke6 {[%clk 0:00:05]} 51. Rg5 {[%clk 0:00:18]}  Rh3 {[%clk 0:00:06]} 52. Re5+ {[%clk 0:00:17]}  Kd6 {[%clk 0:00:05]} 53. Rg5 {[%clk 0:00:17]}  g3 {[%clk 0:00:05]} 54. Rg6+ {[%clk 0:00:17]}  Ke7 {[%clk 0:00:05]} 55. Kf3 {[%clk 0:00:17]}  h4 {[%clk 0:00:05]} 56. Rg7+ {[%clk 0:00:17]}  Kf6 {[%clk 0:00:05]} 57. Rxa7 {[%clk 0:00:16]}  Rh2 {[%clk 0:00:06]} 58. Ra8 {[%clk 0:00:16]}  Rf2+ {[%clk 0:00:06]} 59. Ke3 {[%clk 0:00:16]}  h3 {[%clk 0:00:06]} 60. Rg8 {[%clk 0:00:16]}  h2 {[%clk 0:00:06]} 61. Rxg3 {[%clk 0:00:15]}  h1=Q {[%clk 0:00:06]} 62. Kxf2 {[%clk 0:00:16]}  Qb1 {[%clk 0:00:06]} 63. Rf3+ {[%clk 0:00:16]}  Ke6 {[%clk 0:00:06]} 64. Re3+ {[%clk 0:00:16]}  Kd6 {[%clk 0:00:07]} 65. Re2 {[%clk 0:00:17]}  Qd3 {[%clk 0:00:07]} 66. Re3 {[%clk 0:00:15]}  Qxd4 {[%clk 0:00:07]} 67. Kf3 {[%clk 0:00:16]}  Qd1+ {[%clk 0:00:07]} 68. Re2 {[%clk 0:00:16]}  d4 {[%clk 0:00:08]} 69. Kf2 {[%clk 0:00:16]}  d3 {[%clk 0:00:08]} 70. Re3 {[%clk 0:00:16]}  Qd2+ {[%clk 0:00:08]} 71. Kf3 {[%clk 0:00:17]}  Qc2 {[%clk 0:00:09]} 72. Re8 {[%clk 0:00:14]}  d2 {[%clk 0:00:09]} 73. Rd8+ {[%clk 0:00:13]}  Kc7 {[%clk 0:00:09]} 74. Ke3 {[%clk 0:00:10]}  d1=Q {[%clk 0:00:09]} 0-1


[Site "https://www.chess.com"]